fUST/lending_fUST_20250824
["ID","MTS","AMOUNT","RATE_DAILY","PERIOD"]
[381082995,1756014644594,-360.339661,0.0004,30]
[381082996,1756014644604,-360.339661,0.0004,30]
[381082997,1756014644613,-151.0,0.0004,30]
[381082998,1756014644623,-151.0,0.0004,30]
[381082999,1756014644632,-151.0,0.0004,30]
[381083000,1756014644641,-151.0,0.0004,30]
[381083001,1756014644650,-151.0,0.0004,30]
[381083002,1756014644659,-151.0,0.0004,30]
[381083003,1756014644668,-212.532733,0.0004,30]
[381083004,1756014644677,-168.99581,0.0004,30]
[381083005,1756014644686,-212.532733,0.0004,30]
[381083006,1756014644695,-151.0,0.0004,30]
[381083007,1756014644705,-265.679077,0.0004,30]
[381083008,1756014644714,-212.532733,0.0004,30]
[381083009,1756014644723,-151.0,0.0004,30]
[381083010,1756014644732,-212.532733,0.0004,30]
[381083011,1756014644742,-529.17068775,0.0004,30]
[381083012,1756014644751,-169.664587,0.0004,7]
[381083013,1756014644760,-536.463454,0.0004,30]
[381083014,1756014644770,-536.463454,0.0004,30]
[381083015,1756014644779,-536.463454,0.0004,30]
[381083016,1756014644788,-151.0,0.0004,30]
[381083017,1756014644798,-151.0,0.0004,30]
[381083018,1756014644807,-260.989484,0.0004,30]
[381083019,1756014644817,-536.463454,0.0004,30]
[381083020,1756014644826,-151.0,0.0004,30]
[381083021,1756014644835,-151.0,0.0004,30]
[381083022,1756014644845,-151.0,0.0004,30]
[381083023,1756014644854,-151.0,0.0004,30]
[381083024,1756014644863,-151.0,0.0004,30]
[381083025,1756014644873,-202.594618,0.0004,30]
[381083026,1756014644882,-154.555042,0.0004,30]
[381083027,1756014644892,-151.0,0.0004,30]
[381083028,1756014644901,-202.594618,0.0004,30]
[381083029,1756014644910,-151.0,0.0004,30]
[381083030,1756014644920,-202.594618,0.0004,30]
[381083031,1756014644929,-151.0,0.0004,30]
[381083032,1756014644939,-202.594618,0.0004,30]
[381083033,1756014644949,-151.0,0.0004,30]
[381083034,1756014644959,-151.0,0.0004,30]
[381083035,1756014644968,-410.958125,0.0004,30]
[381083036,1756014644977,-410.958125,0.0004,30]
[381083037,1756014644986,-410.958125,0.0004,30]
[381083038,1756014644996,-151.0,0.0004,30]
[381083039,1756014645006,-410.958125,0.0004,30]
[381083040,1756014645015,-151.0,0.0004,30]
[381083041,1756014645025,-151.0,0.0004,30]
[381083042,1756014645034,-151.0,0.0004,30]
[381083043,1756014645043,-151.0,0.0004,30]
[381083044,1756014645053,-151.0,0.0004,30]
[381083045,1756014645062,-151.0,0.0004,30]
[381083046,1756014645071,-151.0,0.0004,30]
[381083047,1756014645081,-151.0,0.0004,30]
[381083048,1756014645090,-151.0,0.0004,30]
[381083049,1756014645099,-417.15472785,0.0004,30]
[381083050,1756014645109,-380.606439,0.0004,30]
[381083051,1756014645118,-380.606439,0.0004,30]
[381083052,1756014645127,-380.606439,0.0004,30]
[381083053,1756014645136,-380.606439,0.0004,30]
[381083054,1756014645146,-398.920352,0.0004,30]
[381083055,1756014645155,-398.920352,0.0004,30]
[381083056,1756014645164,-151.378962,0.0004,14]
[381083057,1756014645173,-398.920352,0.0004,30]
[381083058,1756014645182,-398.920352,0.0004,30]
[381083059,1756014645191,-1390.904158,0.0004,30]
[381083060,1756014645201,-1390.904158,0.0004,30]
[381083061,1756014645210,-576.683208,0.0004,30]
[381083062,1756014645219,-576.683208,0.0004,30]
[381083063,1756014645229,-1390.904158,0.0004,30]
[381083064,1756014645239,-576.683208,0.0004,30]
[381083065,1756014645248,-1390.904158,0.0004,30]
[381083066,1756014645257,-576.683208,0.0004,30]
[381083067,1756014645267,-151.0,0.0004,30]
[381083068,1756014645276,-151.0,0.0004,30]
[381083069,1756014645285,-151.0,0.0004,30]
[381083070,1756014645294,-151.0,0.0004,30]
[381083071,1756014645304,-151.0,0.0004,30]
[381083072,1756014645313,-225.732584,0.0004,30]
[381083073,1756014645322,-151.0,0.0004,30]
[381083074,1756014645332,-225.732584,0.0004,30]
[381083075,1756014645341,-151.0,0.0004,30]
[381083076,1756014645352,-151.0,0.0004,30]
[381083077,1756014645363,-225.732584,0.0004,30]
[381083078,1756014645373,-151.0,0.0004,30]
[381083079,1756014645383,-225.732584,0.0004,30]
[381083080,1756014645392,-151.0,0.0004,30]
[381083081,1756014645402,-151.0,0.0004,30]
[381083082,1756014645412,-151.0,0.0004,30]
[381083083,1756014645422,-232.42214577,0.0004,30]
[381083084,1756014645434,-151.0,0.0004,30]
[381083085,1756014645444,-151.0,0.0004,30]
[381083086,1756014645454,-152.155785,0.0004,30]
[381083087,1756014645463,-266.031945,0.0004,30]
[381083088,1756014645472,-151.0,0.0004,30]
[381083089,1756014645481,-266.031945,0.0004,30]
[381083090,1756014645490,-151.0,0.0004,30]
[381083091,1756014645499,-266.031945,0.0004,30]
[381083092,1756014645508,-266.031945,0.0004,30]
[381083093,1756014645517,-256.44638,0.0004,30]
[381083094,1756014645527,-256.44638,0.0004,30]
[381083095,1756014645536,-151.0,0.0004,30]
[381083096,1756014645545,-256.44638,0.0004,30]
[381083097,1756014645555,-256.44638,0.0004,30]
[381083098,1756014645564,-151.0,0.0004,15]
[381083099,1756014645573,-151.0,0.0004,15]
[381083100,1756014645583,-151.0,0.0004,15]
[381083101,1756014645592,-151.0,0.0004,30]
[381083102,1756014645601,-151.0,0.0004,30]
[381083103,1756014645610,-151.0,0.0004,30]
[381083104,1756014645619,-151.0,0.0004,30]
[381083105,1756014645629,-353.86257,0.0004,30]
[381083106,1756014645638,-353.86257,0.0004,30]
[381083107,1756014645648,-152.389442,0.0004,30]
[381083108,1756014645658,-329.262919,0.0004,30]
[381083109,1756014645667,-151.0,0.0004,30]
[381083110,1756014645677,-353.86257,0.0004,30]
[381083111,1756014645686,-151.0,0.0004,30]
[381083112,1756014645695,-329.262919,0.0004,30]
[381083113,1756014645704,-151.0,0.0004,30]
[381083114,1756014645713,-329.262919,0.0004,30]
[381083115,1756014645722,-353.86257,0.0004,30]
[381083116,1756014645731,-329.262919,0.0004,30]
[381083117,1756014645741,-151.0,0.0004,30]
[381083118,1756014645750,-220.013943,0.0004,30]
[381083119,1756014645759,-151.0,0.0004,30]
[381083120,1756014645768,-151.0,0.0004,30]
[381083121,1756014645777,-220.013943,0.0004,30]
[381083122,1756014645786,-1000.0,0.00040521,5]
[381083123,1756014645796,-1000.0,0.00040521,5]
[381083124,1756014645805,-504.34264441,0.00040521,5]
[381083125,1756014645814,-1296.35,0.00040648,120]
[381083126,1756014645823,-460.48,0.00040649,3]
[381083127,1756014645832,-199.0,0.00040721,30]
[381083128,1756014645841,-5537.59738218,0.00040968,2]
[381083129,1756014645850,-14685.0,0.00041,30]
[381083130,1756014645860,-1145.94557468,0.00041068,5]
[381083131,1756014645869,-1500.0,0.00041068,5]
[381083132,1756014645878,-151.0,0.00041134,2]
[381083133,1756014645887,-151.0,0.00041134,2]
[381083134,1756014645896,-151.0,0.00041134,2]
[381083135,1756014645905,-151.0,0.00041134,2]
[381083136,1756014645914,-250.61433319,0.00041134,2]
[381083137,1756014645923,-151.0,0.00041134,2]
[381083138,1756014645932,-151.0,0.00041134,2]
[381083139,1756014645942,-151.0,0.00041134,2]
[381083140,1756014645951,-151.0,0.00041134,2]
[381083141,1756014645962,-151.0,0.00041134,2]
[381083142,1756014645971,-151.0,0.00041134,2]
[381083143,1756014645982,-151.0,0.00041134,2]
[381083144,1756014645991,-151.0,0.00041134,2]
[381083145,1756014646000,-151.0,0.00041134,2]
[381083146,1756014646009,-151.0,0.00041134,2]
[381083147,1756014646019,-151.0,0.00041134,2]
[381083148,1756014646030,-151.0,0.00041134,2]
[381083149,1756014646039,-151.0,0.00041134,2]
[381083151,1756014646050,-151.0,0.00041134,2]
[381083152,1756014646060,-151.0,0.00041134,2]
[381083153,1756014646069,-151.0,0.00041134,2]
[381083154,1756014646079,-151.0,0.00041134,2]
[381083155,1756014646091,-198.0,0.00041134,2]
[381083156,1756014646100,-151.0,0.00041134,2]
[381083157,1756014646111,-210.90349589,0.00041134,2]
[381083158,1756014646122,-1401.2143045,0.00041309,28]
[381083159,1756014646132,-151.0,0.00041408,2]
[381083160,1756014646142,-151.0,0.00041408,2]
[381083161,1756014646151,-151.0,0.00041408,2]
[381083162,1756014646160,-151.0,0.00041408,2]
[381083163,1756014646169,-151.0,0.00041408,2]
[381083164,1756014646178,-151.0,0.00041408,2]
[381083165,1756014646187,-151.0,0.00041408,2]
[381083166,1756014646196,-361.90636478,0.00041482,37]
[381083167,1756014646207,-659.57,0.000415,14]
[381083168,1756014646216,-10000.0,0.000415,120]
[381083169,1756014646226,-391.7,0.000416,30]
[381083170,1756014646242,-1020.57562607,0.00041616,10]
[381083171,1756014646254,-587.89316,0.00041644,30]
[381083173,1756014646268,-161.0055628,0.00041644,30]
[381083174,1756014646277,-198.0,0.00041682,2]
[381083175,1756014646286,-198.0,0.00041682,2]
[381083176,1756014646296,-198.0,0.00041682,2]
[381083177,1756014646305,-198.0,0.00041682,2]
[381083178,1756014646314,-198.0,0.00041682,2]
[381083179,1756014646323,-198.0,0.00041682,2]
[381083180,1756014646332,-151.0,0.00041682,2]
[381083181,1756014646342,-160.0,0.00041793,2]
[381083182,1756014646355,-10869.18,0.000418,14]
[381083183,1756014646364,-151.0,0.00041956,2]
[381083184,1756014646373,-150.0,0.00042,120]
[381083185,1756014646382,-1296.35,0.00042018,120]
[381083186,1756014646392,-208.64253542,0.0004223,2]
[381083187,1756014646401,-12698.53451425,0.00042375,2]
[381083188,1756014646410,-361.90636478,0.00043208,41]
[381083189,1756014646419,-1296.35,0.00043388,120]
[381083190,1756014646428,-1401.2143045,0.00043448,28]
[381083191,1756014646438,-2109.84493804,0.00043587,10]
[381083192,1756014646447,-152.0,0.000436,120]
[381083193,1756014646457,-153.2733732,0.00043836,30]
[381083194,1756014646466,-312.1656206,0.00043836,30]
[381083195,1756014646475,-724.8946215,0.00043836,30]
[381083196,1756014646485,-324.5765566,0.00043836,30]
[381083197,1756014646494,-153.0,0.00043836,30]
[381083198,1756014646503,-153.0,0.00043836,30]
[381083199,1756014646513,-153.0,0.00043836,30]
[381083200,1756014646522,-153.0,0.00043836,30]
[381083201,1756014646531,-160.0,0.00043866,3]
[381083202,1756014646540,-217.07852671,0.00043904,2]
[381083203,1756014646549,-215.99145658,0.00043904,2]
[381083204,1756014646558,-215.0,0.00044,120]
[381083205,1756014646568,-659.57,0.000441,14]
[381083206,1756014646577,-5000.0,0.000442,120]
[381083207,1756014646586,-10869.18,0.000447,14]
[381083208,1756014646595,-1296.35,0.00044758,120]
[381083209,1756014646604,-197.814173,0.00044758,120]
[381083210,1756014646614,-151.0,0.00044758,30]
[381083211,1756014646623,-151.0,0.00044758,30]
[381083212,1756014646632,-151.0,0.00044758,120]
[381083213,1756014646641,-151.0,0.00044758,120]
[381083214,1756014646650,-151.0,0.00044758,120]
[381083215,1756014646659,-152.928804,0.00044758,120]
[381083216,1756014646669,-151.0,0.00044758,120]
[381083217,1756014646678,-151.0,0.00044758,120]
[381083218,1756014646687,-151.0,0.00044758,120]
[381083219,1756014646696,-151.0,0.00044758,120]
[381083220,1756014646706,-151.0,0.00044758,120]
[381083221,1756014646715,-151.0,0.00044758,120]
[381083222,1756014646724,-266.031945,0.00044758,120]
[381083223,1756014646733,-151.0,0.00044758,120]
[381083224,1756014646742,-266.031945,0.00044758,120]
[381083225,1756014646751,-151.0,0.00044758,120]
[381083226,1756014646760,-266.031945,0.00044758,120]
[381083227,1756014646769,-266.031945,0.00044758,120]
[381083228,1756014646779,-361.90636478,0.00044935,45]
[381083229,1756014646787,-484.2445147,0.00044987,90]
[381083230,1756014646797,-410.958125,0.00044987,120]
[381083231,1756014646806,-410.958125,0.00044987,120]
[381083232,1756014646816,-410.958125,0.00044987,120]
[381083233,1756014646826,-151.0,0.00044987,120]
[381083234,1756014646835,-410.958125,0.00044987,120]
[381083235,1756014646845,-151.0,0.00044987,120]
[381083236,1756014646854,-151.0,0.00044987,120]
[381083237,1756014646863,-151.0,0.00044987,120]
[381083238,1756014646872,-151.0,0.00044987,120]
[381083239,1756014646882,-260.232271,0.00044987,120]
[381083240,1756014646891,-151.0,0.00044987,120]
[381083241,1756014646901,-151.0,0.00044987,120]
[381083242,1756014646910,-151.0,0.00044987,120]
[381083243,1756014646919,-151.0,0.00044987,120]
[381083244,1756014646929,-380.606439,0.00044987,120]
[381083245,1756014646938,-380.606439,0.00044987,120]
[381083246,1756014646947,-380.606439,0.00044987,120]
[381083247,1756014646956,-380.606439,0.00044987,120]
[381083248,1756014646966,-398.920352,0.00044987,120]
[381083249,1756014646975,-398.920352,0.00044987,120]
[381083250,1756014646984,-398.920352,0.00044987,120]
[381083251,1756014646994,-398.920352,0.00044987,120]
[381083252,1756014647004,-1390.904158,0.00044987,120]
[381083254,1756014647014,-576.683208,0.00044987,120]
[381083255,1756014647023,-1194.81293276,0.00044987,120]
[381083257,1756014647039,-196.09122524,0.00044987,120]
[381083258,1756014647048,-576.683208,0.00044987,120]
[381083259,1756014647058,-320.13565575,0.00044987,120]
[381083260,1756014647684,-220.013943,0.0004,30]
[381083261,1756014647693,-220.013943,0.0004,30]
[381083262,1756014647703,-1070.76850225,0.00044987,120]
[381083263,1756014647712,-53.43875976,0.00044987,120]
[381083264,1756014647723,-523.24444824,0.00044987,120]
[381083265,1756014647732,-1390.904158,0.00044987,120]
[381083266,1756014647741,-576.683208,0.00044987,120]
[381083267,1756014647750,-225.732584,0.00044987,120]
[381083268,1756014647759,-225.732584,0.00044987,120]
[381083269,1756014647768,-225.732584,0.00044987,120]
[381083270,1756014647777,-225.732584,0.00044987,120]
[381083271,1756014647786,-256.44638,0.00044987,120]
[381083272,1756014647796,-256.44638,0.00044987,120]
[381083273,1756014647805,-151.0,0.00044987,120]
[381083274,1756014647814,-256.44638,0.00044987,120]
[381083275,1756014647823,-256.44638,0.00044987,120]
[381083276,1756014647833,-151.0,0.00044987,15]
[381083277,1756014647842,-151.0,0.00044987,15]
[381083278,1756014647851,-151.0,0.00044987,15]
[381083279,1756014647861,-151.0,0.00044987,120]
[381083280,1756014647870,-151.0,0.00044987,120]
[381083281,1756014647879,-151.0,0.00044987,120]
[381083282,1756014647888,-151.0,0.00044987,120]
[381083283,1756014647898,-353.86257,0.00044987,120]
[381083284,1756014647907,-353.86257,0.00044987,120]
[381083285,1756014647917,-151.0,0.00044987,120]
[381083286,1756014647926,-329.262919,0.00044987,120]
[381083287,1756014647936,-353.86257,0.00044987,120]
[381083288,1756014647945,-151.0,0.00044987,120]
[381083289,1756014647955,-329.262919,0.00044987,120]
[381083290,1756014647964,-151.0,0.00044987,120]
[381083291,1756014647973,-329.262919,0.00044987,120]
[381083292,1756014647983,-353.86257,0.00044987,120]
[381083293,1756014647992,-329.262919,0.00044987,120]
[381083294,1756014648002,-151.0,0.00044987,120]
[381083295,1756014648011,-220.013943,0.00044987,120]
[381083296,1756014648020,-151.0,0.00044987,120]
[381083297,1756014648029,-90.94871683,0.00044987,120]
[381083298,1756014648343,-60.05128317,0.00044987,120]
[381083299,1756014648354,-220.013943,0.00044987,120]
[381083300,1756014648364,-220.013943,0.00044987,120]
[381083301,1756014648374,-220.013943,0.00044987,120]
[381083302,1756014648383,-187.24005046,0.00045,61]
[381083303,1756014648392,-245.61985748,0.00045,2]
[381083304,1756014648404,-6673.94315653,0.00045,2]
[381083305,1756014648413,-173.05906146,0.00045,120]
[381083306,1756014648422,-1000.0,0.00045,120]
[381083307,1756014648431,-270.593659,0.00045,120]
[381083308,1756014648441,-270.593659,0.00045,120]
[381083309,1756014648452,-151.0,0.00045,120]
[381083310,1756014648461,-270.593659,0.00045,120]
[381083311,1756014648471,-238.95530333,0.00045,120]
[381083312,1756014648482,-31.63835567,0.00045,120]
[381083313,1756014648491,-151.0,0.00045,120]
[381083314,1756014648500,-151.0,0.00045,120]
[381083315,1756014648509,-151.0,0.00045,120]
[381083316,1756014648519,-151.0,0.00045,120]
[381083317,1756014648528,-151.0,0.00045,120]
[381083318,1756014648537,-151.0,0.00045,120]
[381083319,1756014648546,-360.339661,0.00045,120]
[381083320,1756014648555,-360.339661,0.00045,120]
[381083321,1756014648565,-360.339661,0.00045,120]
[381083322,1756014648575,-360.339661,0.00045,120]
[381083323,1756014648584,-151.0,0.00045,120]
[381083324,1756014648593,-151.0,0.00045,120]
[381083325,1756014648602,-151.0,0.00045,120]
[381083326,1756014648611,-151.0,0.00045,120]
[381083327,1756014648620,-151.0,0.00045,120]
[381083328,1756014648629,-212.532733,0.00045,120]
[381083329,1756014648639,-151.0,0.00045,120]
[381083330,1756014648648,-212.532733,0.00045,120]
[381083331,1756014648657,-151.0,0.00045,120]
[381083332,1756014648667,-212.532733,0.00045,120]
[381083333,1756014648676,-223.020353,0.00045,120]
[381083334,1756014648685,-212.532733,0.00045,120]
[381083335,1756014648694,-529.17068775,0.00045,120]
[381083336,1756014648704,-190.92170758,0.00045,120]
[381083337,1756014648716,-345.54174642,0.00045,120]
[381083338,1756014648726,-536.463454,0.00045,120]
[381083339,1756014648735,-536.463454,0.00045,120]
[381083340,1756014648744,-245.878208,0.00045,120]
[381083341,1756014648754,-44.20831785,0.00045,120]
[381083342,1756014649332,362.39163527,0.000245,7]
[381083344,1756014794502,329.14643317,0.000199,2]
[381083345,1756014794709,329.14643299,0.00021627,2]
[381083346,1756014795212,-309.34613876,0.00029475,30]
[381083347,1756014795273,329.14643299,0.00023353,2]
[381083383,1756014960877,296.23178972,0.000199,2]
[381083384,1756014961743,296.23178969,0.00021627,2]
[381083385,1756014961923,296.23178969,0.00023353,2]
[381083387,1756015136465,264.7555525,0.000199,2]
[381083388,1756015136660,264.75555221,0.00021627,2]
[381083389,1756015136759,264.75555221,0.00023353,2]
[381083390,1756015214951,5000.0,0.000245,3]
[381083391,1756015230936,4484.67016031,0.000245,3]
[381083392,1756015311258,421.73278875,0.000199,2]
[381083393,1756015311731,421.73278863,0.00021627,2]
[381083394,1756015311772,421.73278863,0.00023353,2]
[381083396,1756015488435,379.55102067,0.000199,2]
[381083397,1756015488474,379.55102054,0.00023353,2]
[381083398,1756015489136,379.55102054,0.00021627,2]
[381083399,1756015639138,-500.0,0.00024953,2]
[381083400,1756015639160,-500.0,0.00024953,2]
[381083401,1756015639181,-500.0,0.00024953,2]
[381083402,1756015639206,-379.55102054,0.0002508,2]
[381083403,1756015639231,-379.55102054,0.00026806,6]
[381083404,1756015639253,-1200.0,0.00026848,2]
[381083405,1756015639276,-300.0,0.00028527,2]
[381083406,1756015639298,-1200.0,0.00028528,2]
[381083407,1756015639319,-300.0,0.00028529,2]
[381083408,1756015639340,-300.0,0.0002853,2]
[381083409,1756015639363,-300.0,0.0002853,2]
[381083410,1756015639385,-41.59735247,0.0002853,2]
[381083411,1756015665389,324.96338718,0.000199,2]
[381083412,1756015665632,324.9633871,0.00021627,2]
[381083413,1756015666106,324.9633871,0.00023353,2]
[381083437,1756015831850,-259.0,0.00028429,2]
[381083439,1756015831859,-300.0,0.00028429,2]
[381083441,1756015831869,-10009.39075058,0.0002843,2]
[381083443,1756015831878,-199.0,0.00029375,30]
[381083446,1756015831888,-908.01263038,0.00029421,2]
[381083448,1756015831896,-1000.0,0.00032876,15]
[381083450,1756015831906,-1000.0,0.00033561,15]
[381083452,1756015831916,-1000.0,0.00034246,15]
[381083454,1756015831925,-1172.30002962,0.00034931,2]
[381083455,1756015831934,-1000.0,0.00034931,15]
[381083457,1756015831943,-1754.29659144,0.00035285,2]
[381083460,1756015831958,-1874.12187954,0.00035285,2]
[381083462,1756015831967,-565.26715394,0.00035616,15]
[381083464,1756015831976,-215.99145658,0.0003907,2]
[381083466,1756015831986,-217.07852671,0.0003907,2]
[381083468,1756015831995,-875.75894033,0.000391,2]
[381083470,1756015832004,-155.28101747,0.000391,2]
[381083472,1756015832013,-1175.73,0.00039178,120]
[381083474,1756015832023,-359.37388622,0.00039178,15]
[381083476,1756015832032,-404.16282799,0.00039178,7]
[381083478,1756015832041,-331.93444154,0.00039178,2]
[381083480,1756015832051,-500.0,0.00039178,15]
[381083482,1756015832060,-641.32225393,0.00039178,15]
[381083484,1756015832069,-8751.16766956,0.00039179,2]
[381083622,1756015834398,292.47236214,0.000199,2]
[381083623,1756015834445,292.47236208,0.00021627,2]
[381083625,1756015835005,292.47236208,0.00023353,2]
[381083633,1756015839793,-292.47236208,0.0002508,2]
[381083634,1756015839803,-292.47236208,0.00026806,6]
[381083635,1756015839812,-292.47236208,0.00031986,17]
[381083636,1756015839821,-292.47236208,0.00033712,21]
[381083637,1756015839830,-292.47236208,0.00035439,24]
[381083638,1756015839840,-292.47236208,0.00037166,28]
[381083639,1756015839849,-292.47236208,0.00038892,32]
[381083640,1756015839858,-40450.65187706,0.00039179,2]
[381083641,1756015839874,-1054.27298042,0.00039179,2]
[381083642,1756015839908,-86944.0738304,0.00039179,2]
[381083645,1756015842832,-335.18265456,0.00039179,2]
[381083646,1756015842888,-1150.48738474,0.00039179,2]
[381083647,1756015842948,-4794.01629907,0.00039179,2]
[381083654,1756015846157,-313.317136,0.00039179,2]
[381083655,1756015846168,-1737.80566092,0.00039179,2]
[381083656,1756015846183,-1090.3460293,0.00039179,2]
[381083657,1756015846199,-334.138,0.00039179,2]
[381083658,1756016002815,537.12203448,0.000199,2]
[381083659,1756016002956,537.12203446,0.00023353,2]
[381083660,1756016003036,537.12203446,0.00021627,2]
[381083661,1756016170191,483.40983113,0.000199,2]
[381083662,1756016170667,483.40983101,0.00023353,2]
[381083663,1756016170967,483.40983101,0.00021627,2]
[381083664,1756016338456,435.06884817,0.000199,2]
[381083665,1756016338605,435.0688479,0.00021627,2]
[381083666,1756016338959,435.0688479,0.00023353,2]
[381083667,1756016505124,391.56196311,0.000199,2]
[381083668,1756016505573,391.56196311,0.00021627,2]
[381083669,1756016671246,365.45783241,0.000199,2]
[381083670,1756016671400,365.45783223,0.00021627,2]
[381083671,1756016672209,365.45783223,0.00023353,2]
[381083673,1756016831115,-158.0,0.000245,2]
[381083674,1756016831135,-158.0,0.000245,2]
[381083675,1756016831155,-1591.28268294,0.00029397,2]
[381083676,1756016831175,-215.99145658,0.0002949,2]
[381083677,1756016831194,-217.07852671,0.0002949,2]
[381083678,1756016831214,-1200.0,0.00029495,2]
[381083679,1756016831234,-300.0,0.00029495,2]
[381083680,1756016831253,-513.4921152,0.00029496,2]
[381083681,1756016831273,-500.0,0.00029496,2]
[381083682,1756016831293,-500.0,0.00029496,2]
[381083683,1756016831313,-500.0,0.00029496,2]
[381083684,1756016831333,-1.58833286,0.00029496,2]
[381083685,1756016836898,360.45587081,0.000199,2]
[381083686,1756016837283,360.45587059,0.00021627,2]
[381083687,1756016839560,360.45587059,0.00023353,2]
[381083932,1756017002872,369.63779939,0.000199,2]
[381083933,1756017003487,369.63779912,0.00021627,2]
[381083934,1756017003602,369.63779912,0.00023353,2]
[381083983,1756017032200,-369.63779912,0.0002508,2]
[381083984,1756017032209,-300.0,0.00025999,2]
[381083986,1756017032218,-300.0,0.00025999,2]
[381083988,1756017032227,-180.17799312,0.00025999,2]
[381083991,1756017032239,-119.82200688,0.00025999,2]
[381083994,1756017032249,-1200.0,0.00025999,2]
[381083997,1756017032258,-300.0,0.00025999,2]
[381084000,1756017032268,-43585.19417372,0.00026,30]
[381084228,1756017038030,-199.0,0.000259,30]
[381084229,1756017038039,-236.0,0.00025999,2]
[381084230,1756017038109,-264.0,0.00025999,2]
[381084231,1756017038118,-500.0,0.00025999,2]
[381084232,1756017038127,-252.27417582,0.00025999,2]
[381084233,1756017038136,-500.0,0.00025999,2]
[381084234,1756017038145,-261.74159377,0.00025999,2]
[381084235,1756017038154,-500.0,0.00025999,2]
[381084236,1756017038165,-500.0,0.00025999,2]
[381084237,1756017038174,-500.0,0.00025999,2]
[381084238,1756017038183,-500.0,0.00025999,2]
[381084240,1756017038192,-500.0,0.00025999,2]
[381084241,1756017038201,-340.57246576,0.00025999,2]
[381084242,1756017038210,-500.0,0.00025999,2]
[381084243,1756017038219,-500.0,0.00025999,2]
[381084244,1756017038228,-500.0,0.00025999,2]
[381084245,1756017038237,-500.0,0.00025999,2]
[381084246,1756017038245,-500.0,0.00025999,2]
[381084247,1756017038254,-500.0,0.00025999,2]
[381084248,1756017038264,-500.0,0.00025999,2]
[381084249,1756017038275,-500.0,0.00025999,2]
[381084250,1756017038284,-500.0,0.00025999,2]
[381084251,1756017038293,-500.0,0.00025999,2]
[381084252,1756017038302,-500.0,0.00025999,2]
[381084253,1756017038311,-584.40698103,0.00025999,2]
[381084254,1756017038320,-304.79785693,0.00025999,2]
[381084255,1756017038329,-500.0,0.00025999,2]
[381084256,1756017038339,-500.0,0.00025999,2]
[381084257,1756017038347,-500.0,0.00025999,2]
[381084258,1756017038356,-500.0,0.00025999,2]
[381084259,1756017038365,-437.34953461,0.00025999,2]
[381084260,1756017038374,-500.0,0.00025999,2]
[381084261,1756017038383,-500.0,0.00025999,2]
[381084262,1756017038394,-500.0,0.00025999,2]
[381084263,1756017038403,-500.0,0.00025999,2]
[381084264,1756017038412,-500.0,0.00025999,2]
[381084265,1756017038421,-500.0,0.00025999,2]
[381084266,1756017038431,-500.0,0.00025999,2]
[381084267,1756017038440,-564.70186993,0.00025999,2]